Cogmind - Beta 12 @@@ ROGUE MODE // 2023.03.31 @ 23:37:56 Player: Rohain Result: Destroyed by H-77 Assassin with High-powered Shotgun Performance ------------- Evolutions (7) 3500 Regions Visited (16) 3200 Robots Destroyed (121) 605 Value Destroyed (7197) 7197 Prototype IDs (29) 580 Alien Tech Used (0) 0 Bonus (4594) 4594 TOTAL SCORE: 19676 Bonus ------- High Alert Combat Kills 214 Follower Combat Kills 1617 Entered Garrisons 600 Used RIF Installer 2000 Aligned with FarCom 300 Friendly Fire -137 Cogmind --------- Core Integrity 0/1300 Matter 250/300 Energy 99/100 System Corruption 87% Temperature Cool (0) Movement Core (50) Location -3/Research Parts ------- > --- POWER (2) -------- (None) > --- PROPULSION (5) --- (None) > --- UTILITY (10) ----- Advanced Signal Interpreter Advanced Targeting Computer Core Analyzer Relay Coupler [NC] (42) > --- WEAPON (4) ------- High-powered Shotgun > --- INVENTORY (5) ---- Micro Antimatter Reactor Peak State ------------ > --- POWER ------------ Light Antimatter Reactor Micro Antimatter Reactor > --- PROPULSION ------- Improved Antigrav System Improved Antigrav System Improved Antigrav System Improved Antigrav System Improved Antigrav System > --- UTILITY ---------- Advanced Power Amplifier Advanced Heat Sink Advanced Heat Sink Advanced Heat Sink Improved Cooling System Advanced Signal Interpreter Advanced Targeting Computer Core Analyzer Relay Coupler [NC] > --- WEAPON ----------- Improved Arc Projector Gamma Rifle Gamma Rifle Gamma Rifle > --- INVENTORY -------- Micro Antimatter Reactor Micro Antimatter Reactor Advanced KE Penetrator Improved Remote Datajack [Rating: 122] Favorites ----------- Power Improved Deuterium Engine Engine Improved Deuterium Engine Power Core Neutrino Core Reactor Light Antimatter Reactor Propulsion Improved Titanium Leg Leg Improved Titanium Leg Wheel Compact Wheel Hover Unit Improved Antigrav System Utility Large Storage Unit Device Weapon Cycler Storage Large Storage Unit Processor Improved Signal Interpreter Hackware Relay Coupler [NC] Protection Layered Medium Armor Plating Weapon Enhanced Autogun Energy Gun Wave Gun Energy Cannon Improved EM Pulse Cannon Ballistic Gun Enhanced Autogun Ballistic Cannon Light Cannon Special Weapon Remote Datajack Build | -11 -10 -10 -10 -9 -8 -7 -7 -7 -6 -6 -6 -5 -5 -5 -4 -3 ------- Run | Jun Mat Min Exi Min Mat Fac Gar Fac Fac Gar Fac Fac Gar Fac Fac Res Slots Evolved 14 | . . . . . 4 2 . . 2 . . 2 . . 2 2 Power 1 | . . . . . . . . . . . . . . . 1 . Propulsion 3 | . . . . . 2 . . . . . . 1 . . . . Utility 8 | . . . . . 1 2 . . 2 . . 1 . . 1 1 Weapon 2 | . . . . . 1 . . . . . . . . . . 1 Parts Attached 233 | 6 6 3 1 16 31 4 23 4 . 14 6 11 21 3 35 49 Power 30 | 1 . . . 2 1 . 4 1 . . 1 2 3 1 9 5 Engine 16 | 1 . . . 2 1 . 2 1 . . 1 1 2 1 4 . Core 4 | . . . . . . . 2 . . . . . 1 . 1 . Reactor 10 | . . . . . . . . . . . . 1 . . 4 5 Propulsion 68 | 2 3 1 . 6 10 3 2 1 . 2 2 5 5 1 8 17 Treads . | . . . . . . . . . . . . . . . . . Leg 49 | 2 3 1 . 6 10 3 2 1 . 2 2 1 5 1 4 6 Wheel 5 | . . . . . . . . . . . . . . . 4 1 Hover 14 | . . . . . . . . . . . . 4 . . . 10 Flight . | . . . . . . . . . . . . . . . . . Utility 56 | 1 1 . . 1 4 1 8 2 . 10 3 1 6 1 6 11 Device 24 | . 1 . . 1 2 1 3 . . . . . 2 . 4 10 Storage 2 | 1 . . . . 1 . . . . . . . . . . . Processor 4 | . . . . . 1 . . 1 . . . . . 1 . 1 Hackware 22 | . . . . . . . 4 1 . 10 3 1 3 . . . Protection 4 | . . . . . . . 1 . . . . . 1 . 2 . Artifact . | . . . . . . . . . . . . . . . . . Weapon 79 | 2 2 2 1 7 16 . 9 . . 2 . 3 7 . 12 16 Energy Gun 37 | . 2 1 . . 6 . 4 . . . . 2 3 . 9 10 Energy Cannon 10 | . . . 1 3 3 . . . . 1 . . 1 . 1 . Ballistic Gun 26 | 2 . . . 1 7 . 4 . . 1 . 1 2 . 2 6 Ballistic Cannon 4 | . . 1 . 3 . . . . . . . . . . . . Launcher . | . . . . . . . . . . . . . . . . . Special Weapon 2 | . . . . . . . 1 . . . . . 1 . . . Impact Weapon . | . . . . . . . . . . . . . . . . . Slashing Weapon . | . . . . . . . . . . . . . . . . . Piercing Weapon . | . . . . . . . . . . . . . . . . . Special Melee Weapon . | . . . . . . . . . . . . . . . . . Unidentified Prototypes 6 | . . . . . 3 . . . . . . 2 . . . 1 Corrupted Parts 20 | . . . . . . . . . . . . . . . 9 11 System Corruption 118 | . . . . . . . . . . . . . . . 53 65 Parts Lost 97 | . . 1 . 2 2 . 2 . . 1 . . 12 . 33 44 Power 18 | . . . . 2 1 . 2 . . . . . 3 . 5 5 Propulsion 29 | . . . . . . . . . . 1 . . 2 . 10 16 Utility 20 | . . 1 . . 1 . . . . . . . 2 . 7 9 Weapon 30 | . . . . . . . . . . . . . 5 . 11 14 Highest Loss Streak 21 | . . 1 . 2 1 . 1 . . 1 . . 8 . 11 21 To Critical Strikes . | . . . . . . . . . . . . . . . . . Average Slot Usage (%) 90 | . 95 94 85 94 98 92 97 98 86 95 97 92 86 98 84 64 Engine 7 | . 14 14 14 12 8 7 6 7 6 6 6 4 4 5 5 . Leg 22 | . 28 28 28 27 36 30 30 30 26 25 26 14 8 29 12 4 Hover 2 | . . . . . . . . . . . . 7 11 . . 9 Device 9 | . 9 8 . 10 8 15 16 7 6 6 2 . 2 11 14 9 Storage 7 | . 14 14 14 14 9 7 7 7 6 6 6 5 5 5 5 1 Processor 8 | . . . . . 8 7 7 13 13 13 13 11 11 11 10 12 Hackware 7 | . . . . . . . 2 7 6 15 21 28 23 11 6 4 Protection 1 | . . . . . . . . . . . . . . 5 6 . Energy Gun 5 | . 1 14 14 14 3 . 2 . . . . 1 7 11 9 8 Energy Cannon 1 | . . . 8 4 1 . . . . 5 6 . . . . . Ballistic Gun 9 | . 26 5 . . 19 23 15 15 13 6 6 8 2 3 2 2 Ballistic Cannon 1 | . . 8 5 9 1 . . . . . . . . . . . Special Weapon 2 | . . . . . . . 3 7 6 6 6 5 2 . . . Naked Turns . | . . . . . . . . . . . . . . . . . Heaviest Build 86 | 14 15 16 23 23 44 38 44 40 40 44 44 42 61 61 86 56 Greatest Support 90 | 20 20 20 20 20 60 75 80 80 80 80 75 90 83 83 83 75 Greatest Overweight (x) 14 | . . . 1 1 . . . . . . . 1 2 . 4 14 Average Overweight (x) . | . . . . . . . . . . . . . . . 1 . Largest Inventory Capacity 15 | 8 8 8 8 8 15 15 15 15 15 15 15 15 15 15 15 15 Average Capacity 12 | 7 8 8 8 8 14 15 15 15 15 15 15 15 15 15 15 9 Most Carried 15 | 2 8 8 8 8 15 15 15 15 15 15 15 15 15 13 15 7 Average Carried 11 | . 5 7 7 7 11 13 14 14 15 14 14 14 11 12 12 3 Final Capacity 15 | 8 8 8 8 8 15 15 15 15 15 15 15 15 15 15 15 5 Final Carried 15 | 1 8 8 8 8 14 15 15 15 15 15 15 15 12 13 5 1 Class Distribution -------------------- 35% | Bothacker-Mutant 17% | Scavenger-Mutant 17% | Mutant 14% | Scavenger-Skirmisher 5% | Skirmisher 5% | Scavenger-Tank 4% | Scavenger-Gunner Dominant Class ---------------- Mutant | -10/Materials Scavenger-Mutant | -10/Mines Mutant | -10/Exiles Scavenger-Mutant | -9/Mines Scavenger-Skirmisher | -8/Materials Scavenger-Skirmisher | -7/Factory Bothacker-Mutant | -7/Garrison Bothacker-Mutant | -7/Factory Bothacker-Mutant | -6/Factory Bothacker-Mutant | -6/Garrison Bothacker-Mutant | -6/Factory Bothacker-Mutant | -5/Factory Bothacker-Mutant | -5/Garrison Scavenger-Skirmisher | -5/Factory Scavenger-Tank | -4/Factory Scavenger-Gunner | -3/Research Resources | -11 -10 -10 -10 -9 -8 -7 -7 -7 -6 -6 -6 -5 -5 -5 -4 -3 ----------- Run | Jun Mat Min Exi Min Mat Fac Gar Fac Fac Gar Fac Fac Gar Fac Fac Res Matter Collected 4561 | 101 290 160 . 225 855 . 1073 92 . 225 133 86 389 44 338 550 Remotely . | . . . . . . . . . . . . . . . . . Salvage Created 6120 | . 278 176 . 367 1069 . 860 25 . 65 . 141 220 67 1682 1170 Parts 316 | . 20 6 . 23 64 . 49 1 . 1 . 2 10 6 60 74 Haulers Intercepted 2 | . . . . . 2 . . . . . . . . . . . Recyclers Shooed 5 | . 1 . . 1 . . . . . . . . . . 2 1 Parts Field Recycled . | . . . . . . . . . . . . . . . . . Retrieved Matter . | . . . . . . . . . . . . . . . . . Parts Self-Destructed . | . . . . . . . . . . . . . . . . . Prevented . | . . . . . . . . . . . . . . . . . Kills | -11 -10 -10 -10 -9 -8 -7 -7 -7 -6 -6 -6 -5 -5 -5 -4 -3 ------- Run | Jun Mat Min Exi Min Mat Fac Gar Fac Fac Gar Fac Fac Gar Fac Fac Res Combat Hostiles Destroyed 93 | . 9 2 . 8 15 . 18 1 . 1 . . 4 3 16 16 Guns 82 | . 9 2 . 3 15 . 18 1 . 1 . . 4 3 12 14 Cannons 3 | . . . . 3 . . . . . . . . . . . . AOE 3 | . . . . 2 . . . . . . . . . . 1 . Classes Destroyed 14 | . 3 1 . 1 5 . 2 . . . . . 1 . 1 . Worker 8 | . . . . 1 2 . . . . . . . . . 1 4 Builder 6 | . . . . . 5 . . . . . . . . . 1 . Tunneler 2 | . 1 . . . 1 . . . . . . . . . . . Hauler 2 | . . . . . 2 . . . . . . . . . . . Recycler 8 | . . 1 . 2 . . . . . . . 1 . . 4 . Mechanic 1 | . . . . . 1 . . . . . . . . . . . Swarmer 19 | . 3 . . 4 . . 3 1 . . . . 3 3 . 2 Cutter 3 | . . . . . . . 3 . . . . . . . . . Grunt 39 | . 6 2 . 4 9 . 6 . . 1 . . 1 . 6 4 Duelist 1 | . . . . . . . 1 . . . . . . . . . Sentry 13 | . . . . . 4 . 5 . . . . . . . 3 1 Specialist 3 | . . . . . . . . . . . . . 1 . 2 . Hunter 6 | . . . . . 2 . . . . . . . . . 2 2 Programmer 10 | . . . . . . . . . . . . . . . 3 7 Best Kill Streak 8 | . 3 1 . 4 6 . 3 1 . 1 . 1 2 2 8 5 Combat Bots Only 6 | . 3 1 . 4 4 . 3 1 . 1 . . 2 2 6 4 Max Kills in Single Turn 3 | . 1 1 . 2 3 . 1 1 . 1 . 1 1 1 2 2 Gunslinging 1 | . . . . 1 1 . . . . . . . . . . . Exploded 2 | . . . . 2 . . . . . . . . . . 1 . Melee . | . . . . . . . . . . . . . . . . . Uniques/NPCs Destroyed . | . . . . . . . . . . . . . . . . . Combat | -11 -10 -10 -10 -9 -8 -7 -7 -7 -6 -6 -6 -5 -5 -5 -4 -3 -------- Run | Jun Mat Min Exi Min Mat Fac Gar Fac Fac Gar Fac Fac Gar Fac Fac Res Damage Taken 14373 | . 367 163 . 279 978 . 1306 . . 259 110 79 1402 143 4210 5077 Core 2923 | . 40 . . 92 142 . 214 . . . 33 . 340 . 751 1311 Absorbed by Shields 101 | . . . . . . . 64 . . . . . 37 . . . Core Remaining (%) 69 | 100 . . . 47 74 . . 69 . . 96 . . 66 34 . Volleys Fired 465 | . 27 13 . 19 62 . 100 8 . 41 2 18 37 4 62 72 Largest 4 | . 2 2 . 2 3 . 3 2 . 2 1 2 3 3 3 4 Hottest 290 | . 40 75 . 125 140 . 95 50 . 69 5 94 136 192 250 290 Shots Fired 930 | . 54 26 . 29 179 . 207 12 . 43 2 22 51 12 144 149 Gun 806 | . 54 21 . 11 170 . 194 8 . 7 . 4 35 12 141 149 Cannon 52 | . . 5 . 18 9 . . . . 9 . 4 4 . 3 . Launcher . | . . . . . . . . . . . . . . . . . Special 72 | . . . . . . . 13 4 . 27 2 14 12 . . . Kinetic 519 | . 54 13 . 17 152 . 170 8 . 7 . 4 6 4 39 45 Thermal 188 | . . 13 . 10 24 . . . . . . . 29 8 79 25 Explosive . | . . . . . . . . . . . . . . . . . Electromagnetic 151 | . . . . 2 3 . 24 . . 9 . 4 4 . 26 79 Robot Hit Streak 20 | . 13 11 . 20 12 . 16 4 . 7 9 10 17 12 19 19 Robot Miss Streak 6 | . 2 1 . 2 3 . 6 1 . 1 . 2 2 3 3 3 Penetration Max 2 | . . . . . . . . . . . . . . . 1 2 Secondary Targets 14 | . 1 . . 1 5 . 3 . . . . . . . 4 . Max Gunslinging Chain 1 | . 1 . . 1 1 . 1 . . . . . . . 1 . Shots Hit Robots 611 | . 39 20 . 20 118 . 106 9 . 23 2 13 39 4 105 113 Core Hits 269 | . 16 6 . 13 55 . 41 4 . 1 . 4 10 3 57 59 Critical Kills 7 | . . . . . . . . . . . . . . . 4 3 Critical Parts Destroyed 8 | . . . . . 1 . . . . . . . . . 1 6 Critical Strikes 22 | . . . . . 1 . . . . . . . 1 . 8 12 Burn 5 | . . . . . . . . . . . . . 1 . 2 2 Destroy 16 | . . . . . 1 . . . . . . . . . 6 9 Corrupt 1 | . . . . . . . . . . . . . . . . 1 Melee Attacks . | . . . . . . . . . . . . . . . . . Impact . | . . . . . . . . . . . . . . . . . Slashing . | . . . . . . . . . . . . . . . . . Piercing . | . . . . . . . . . . . . . . . . . Sneak Attacks . | . . . . . . . . . . . . . . . . . Combat Hostiles . | . . . . . . . . . . . . . . . . . Follow-up Attacks . | . . . . . . . . . . . . . . . . . Damage Inflicted 12606 | . 493 261 . 627 2415 . 1618 132 . 31 . 137 739 94 3219 2840 Guns 10373 | . 493 191 . 119 1915 . 1618 132 . 31 . 15 659 94 2548 2558 Cannons 530 | . . 70 . 207 93 . . . . . . 122 24 . 14 . Explosions 1684 | . . . . 301 388 . . . . . . . 56 . 657 282 Melee . | . . . . . . . . . . . . . . . . . Ramming 19 | . . . . . 19 . . . . . . . . . . . Kinetic 6522 | . 493 161 . 217 1787 . 1580 132 . 31 . 15 117 24 854 1111 Thermal 3392 | . . 100 . 109 216 . . . . . . . 598 70 1435 864 Explosive . | . . . . . . . . . . . . . . . . . Electromagnetic 2673 | . . . . 301 393 . 38 . . . . 122 24 . 930 865 Impact . | . . . . . . . . . . . . . . . . . Slashing . | . . . . . . . . . . . . . . . . . Piercing . | . . . . . . . . . . . . . . . . . Highest Corruption 87 | . . . . 4 7 . . . . . . . . . 66 87 Average Corruption 11 | . . . . 3 2 . . . . . . . . . 8 26 Corruption Purged . | . . . . . . . . . . . . . . . . . Corruption Blocked . | . . . . . . . . . . . . . . . . . Effects 82 | . . . . 13 6 . . . . . . . . . 22 41 Message Errors 20 | . . . . 2 1 . . . . . . . . . 4 13 Matter Fused 11 | . . . . . 1 . . . . . . . . . 3 7 Heat Flow Errors 5 | . . . . 2 . . . . . . . . . . 1 2 Energy Discharges 9 | . . . . 3 1 . . . . . . . . . 4 1 Parts Rejected 4 | . . . . 2 . . . . . . . . . . 2 . Parts Fused 1 | . . . . . . . . . . . . . . . 1 . Data Loss (minor) 4 | . . . . . . . . . . . . . . . 2 2 Data Loss (major) 3 | . . . . 1 1 . . . . . . . . . 1 . Misfires 3 | . . . . 1 1 . . . . . . . . . . 1 Alerts 4 | . . . . 1 . . . . . . . . . . 1 2 Misdirections 6 | . . . . . . . . . . . . . . . 1 5 Weapon Failures 12 | . . . . 1 1 . . . . . . . . . 2 8 Overload Shots . | . . . . . . . . . . . . . . . . . Overflow Damage 42 | . . . . 18 22 . . . . . . . . . 2 . Projectiles . | . . . . . . . . . . . . . . . . . Explosions 42 | . . . . 18 22 . . . . . . . . . 2 . Melee . | . . . . . . . . . . . . . . . . . Knockbacks 4 | . . 2 . 2 . . . . . . . . . . . . Impact . | . . . . . . . . . . . . . . . . . Kinetic 4 | . . 2 . 2 . . . . . . . . . . . . Secondary . | . . . . . . . . . . . . . . . . . Self-Inflicted Damage 193 | . . . . . . . . . . . . . 38 . 69 86 Shots 4 | . . . . . . . . . . . . . 1 . 2 1 Rammed . | . . . . . . . . . . . . . . . . . Targets Rammed 2 | . . . . . 2 . . . . . . . . . . . Kicked 2 | . . . . . 2 . . . . . . . . . . . Crushed . | . . . . . . . . . . . . . . . . . Highest Temperature 301 | . . 29 . 253 74 . 66 46 . 87 . 56 267 42 301 120 Average Temperature 51 | . . 15 . 96 20 . 20 26 . 28 . 24 76 31 80 34 Received Heat Transfer 2516 | . 156 90 . 144 450 . 225 . . 78 30 9 535 . 534 265 Siege Activations . | . . . . . . . . . . . . . . . . . Robots Corrupted 4 | . . . . . . . . . . . . . . . 2 2 Combat Hostiles 4 | . . . . . . . . . . . . . . . 2 2 Parts Fried 21 | . . . . . 1 . . . . . . . . . 8 12 Impact Corruptions . | . . . . . . . . . . . . . . . . . Robots Melted 1 | . . . . . . . . . . . . . . . 1 . Combat Hostiles 1 | . . . . . . . . . . . . . . . 1 . Parts Melted 17 | . . 1 . . . . . . . . . . 1 . 9 6 Heat Transferred 6081 | . . 225 . 259 498 . . . . . . . 1154 111 2322 1512 Parts Sabotaged . | . . . . . . . . . . . . . . . . . Parts Stolen . | . . . . . . . . . . . . . . . . . Parts Stripped . | . . . . . . . . . . . . . . . . . Power Chain Reactions 2 | . . . . . . . . . . . . . 1 . . 1 Missiles Intercepted . | . . . . . . . . . . . . . . . . . Latent Energy Used 950 | . . . . 264 450 . . . . . . . . . 236 . LE Corruption 16 | . . . . 4 7 . . . . . . . . . 5 . Alert | -11 -10 -10 -10 -9 -8 -7 -7 -7 -6 -6 -6 -5 -5 -5 -4 -3 ------- Run | Jun Mat Min Exi Min Mat Fac Gar Fac Fac Gar Fac Fac Gar Fac Fac Res Peak Influence 1093 | . 168 115 . 283 520 168 1093 722 294 582 399 326 724 436 338 191 Initial 573 | . . 55 . . 31 168 117 573 294 205 305 187 117 349 213 73 Average 309 | . 105 54 . 164 234 168 587 620 294 396 352 245 541 404 212 69 Maximum Alert Level 3 | . . . . 1 2 . 3 3 1 2 1 1 3 2 1 . Low Security (%) 40 | 100 100 100 . 79 33 100 11 . . . . 36 9 . 33 100 Level 1 32 | . . . . 20 60 . 18 . 100 60 100 63 15 28 66 . Level 2 20 | . . . . . 5 . 38 86 . 39 . . 63 71 . . Level 3 6 | . . . . . . . 32 13 . . . . 11 . . . Level 4 . | . . . . . . . . . . . . . . . . . Level 5 . | . . . . . . . . . . . . . . . . . High Security . | . . . . . . . . . . . . . . . . . Max Security . | . . . . . . . . . . . . . . . . . Squads Dispatched 22 | . 3 . . . 2 . . 1 . . . 3 . . 6 7 Investigation 4 | . 2 . . . 1 . . . . . . 1 . . . . Extermination 5 | . . . . . . . . 1 . . . . . . 1 3 Reinforcement 7 | . 1 . . . 1 . . . . . . 2 . . 2 1 Assault . | . . . . . . . . . . . . . . . . . Garrison 6 | . . . . . . . . . . . . . . . 3 3 Intercept . | . . . . . . . . . . . . . . . . . Searches Triggered . | . . . . . . . . . . . . . . . . . Construction Impeded 1 | . . . . . 1 . . . . . . . . . . . Haulers Reinforced . | . . . . . . . . . . . . . . . . . Active Scanning Responses . | . . . . . . . . . . . . . . . . . Cargo Convoy Interrupts . | . . . . . . . . . . . . . . . . . Stealth | -11 -10 -10 -10 -9 -8 -7 -7 -7 -6 -6 -6 -5 -5 -5 -4 -3 --------- Run | Jun Mat Min Exi Min Mat Fac Gar Fac Fac Gar Fac Fac Gar Fac Fac Res Distress Signals 7 | . . . . . 4 . . . . . . 1 . . 1 1 Communications Jammed . | . . . . . . . . . . . . . . . . . Distress Signals . | . . . . . . . . . . . . . . . . . Times Spotted 245 | . 15 3 . 8 27 . 37 8 . 38 7 11 23 4 38 26 Peak Tracking Total 10 | . 5 2 . 3 6 . 4 3 . 9 4 5 10 3 8 5 Tactical Retreats 16 | . . 1 . 1 2 . 4 . . 2 . . 1 1 4 . Traps | -11 -10 -10 -10 -9 -8 -7 -7 -7 -6 -6 -6 -5 -5 -5 -4 -3 ------- Run | Jun Mat Min Exi Min Mat Fac Gar Fac Fac Gar Fac Fac Gar Fac Fac Res Traps Triggered 16 | . 2 . . . 2 . 8 . . 1 . 1 1 1 . . Indirectly 2 | . . . . . 2 . . . . . . . . . . . Trap Hack Attempts . | . . . . . . . . . . . . . . . . . Triggered . | . . . . . . . . . . . . . . . . . Disarmed . | . . . . . . . . . . . . . . . . . Reprogrammed . | . . . . . . . . . . . . . . . . . Reused . | . . . . . . . . . . . . . . . . . Traps Extracted . | . . . . . . . . . . . . . . . . . Installed . | . . . . . . . . . . . . . . . . . Triggered . | . . . . . . . . . . . . . . . . . Machines | -11 -10 -10 -10 -9 -8 -7 -7 -7 -6 -6 -6 -5 -5 -5 -4 -3 ---------- Run | Jun Mat Min Exi Min Mat Fac Gar Fac Fac Gar Fac Fac Gar Fac Fac Res Machines Disabled 23 | . . . . 2 4 . 5 . . 5 . 1 3 . 3 . Max in Single Turn 2 | . . . . 1 1 . 1 . . 1 . . 1 . 2 . Garrison Relay 12 | . . . . . . . 5 . . 5 . . 2 . . . Machines Repaired . | . . . . . . . . . . . . . . . . . Machines Sabotaged . | . . . . . . . . . . . . . . . . . Overloaded Fab Kills . | . . . . . . . . . . . . . . . . . Hacking | -11 -10 -10 -10 -9 -8 -7 -7 -7 -6 -6 -6 -5 -5 -5 -4 -3 --------- Run | Jun Mat Min Exi Min Mat Fac Gar Fac Fac Gar Fac Fac Gar Fac Fac Res Machines Accessed 14 | . 3 . 1 . 3 1 . 3 1 . . 2 . . . . Terminals 9 | . 3 . . . 3 . . 2 . . . 1 . . . . Fabricators 1 | . . . . . . . . 1 . . . . . . . . Repair Stations . | . . . . . . . . . . . . . . . . . Recycling Units . | . . . . . . . . . . . . . . . . . Scanalyzers . | . . . . . . . . . . . . . . . . . Garrison Access 3 | . . . . . . 1 . . 1 . . 1 . . . . Total Hacks 21 | . 6 . 1 . 7 1 . 3 1 . . 2 . . . . Successful 11 | . 4 . 1 . 1 1 . 2 1 . . 1 . . . . Failed 10 | . 2 . . . 6 . . 1 . . . 1 . . . . Catastrophic 1 | . . . . . . . . 1 . . . . . . . . Database Lockouts . | . . . . . . . . . . . . . . . . . Manual 16 | . 6 . 1 . 7 . . 1 . . . 1 . . . . Terminals 16 | . 6 . . . 7 . . 2 . . . 1 . . . . Fabricators 1 | . . . . . . . . 1 . . . . . . . . Repair Stations . | . . . . . . . . . . . . . . . . . Recycling Units . | . . . . . . . . . . . . . . . . . Scanalyzers . | . . . . . . . . . . . . . . . . . Garrison Access 3 | . . . . . . 1 . . 1 . . 1 . . . . Terminal Hacks 3 | . 1 . 1 . . . . 1 . . . . . . . . Open DSF 1 | . . . . . . . . 1 . . . . . . . . Branch Access Points 1 | . 1 . . . . . . . . . . . . . . . EX-Prototype ID Bank 1 | . . . 1 . . . . . . . . . . . . . Fabricator Hacks 1 | . . . . . . . . 1 . . . . . . . . Network Status 1 | . . . . . . . . 1 . . . . . . . . Repair Station Hacks . | . . . . . . . . . . . . . . . . . Recycling Unit Hacks . | . . . . . . . . . . . . . . . . . Scanalyzer . | . . . . . . . . . . . . . . . . . Garrison Access Hacks 3 | . . . . . . 1 . . 1 . . 1 . . . . Unlock Access 3 | . . . . . . 1 . . 1 . . 1 . . . . Unauthorized Hacks 4 | . 3 . . . 1 . . . . . . . . . . . Terminals 4 | . 3 . . . 1 . . . . . . . . . . . Botnet 4 | . 3 . . . 1 . . . . . . . . . . . Fabricators . | . . . . . . . . . . . . . . . . . Repair Stations . | . . . . . . . . . . . . . . . . . Recycling Units . | . . . . . . . . . . . . . . . . . Scanalyzers . | . . . . . . . . . . . . . . . . . Garrison Access . | . . . . . . . . . . . . . . . . . Data Cores Recovered 1 | . . . . . 1 . . . . . . . . . . . Used 1 | . . . . . 1 . . . . . . . . . . . Hacking Detections 9 | . 2 . . . 3 . . 1 1 . . 2 . . . . Full Trace Events 1 | . . . . . 1 . . . . . . . . . . . Feedback Events . | . . . . . . . . . . . . . . . . . Feedback Blocked . | . . . . . . . . . . . . . . . . . Robot Schematics Acquired . | . . . . . . . . . . . . . . . . . Robots Built . | . . . . . . . . . . . . . . . . . Authchips . | . . . . . . . . . . . . . . . . . Time . | . . . . . . . . . . . . . . . . . Total Robot Build Rating . | . . . . . . . . . . . . . . . . . Part Schematics Acquired . | . . . . . . . . . . . . . . . . . Parts Built . | . . . . . . . . . . . . . . . . . Authchips . | . . . . . . . . . . . . . . . . . Time . | . . . . . . . . . . . . . . . . . Total Part Build Rating . | . . . . . . . . . . . . . . . . . Parts Repaired . | . . . . . . . . . . . . . . . . . Time . | . . . . . . . . . . . . . . . . . Parts Recycled . | . . . . . . . . . . . . . . . . . Recycled Matter . | . . . . . . . . . . . . . . . . . Retrieved Matter . | . . . . . . . . . . . . . . . . . Retrieved Components . | . . . . . . . . . . . . . . . . . Parts Scanalyzed . | . . . . . . . . . . . . . . . . . Part Schematics Acquired . | . . . . . . . . . . . . . . . . . Parts Damaged . | . . . . . . . . . . . . . . . . . Bothacking | -11 -10 -10 -10 -9 -8 -7 -7 -7 -6 -6 -6 -5 -5 -5 -4 -3 ------------ Run | Jun Mat Min Exi Min Mat Fac Gar Fac Fac Gar Fac Fac Gar Fac Fac Res Used RIF Installer 4 | . . . . . . . 1 . . 2 . . 1 . . . Code Merge 1 | . . . . . . . . . . . . . 1 . . . Watcher Feeds 1 | . . . . . . . . . . 1 . . . . . . Program Shield 1 | . . . . . . . . . . 1 . . . . . . Robots Hacked 46 | . . . . . . . 11 3 . 20 2 6 4 . . . Non-combat 4 | . . . . . . . . 1 . . . 3 . . . . Combat 42 | . . . . . . . 11 2 . 20 2 3 4 . . . Robot Hacks Applied 47 | . . . . . . . 11 3 . 21 2 6 4 . . . parse_system 1 | . . . . . . . . 1 . . . . . . . . find_chute 1 | . . . . . . . . . . . . 1 . . . . check_alert 1 | . . . . . . . . . . . . 1 . . . . mark_security 1 | . . . . . . . . . . . . 1 . . . . scatter_targeting 1 | . . . . . . . . . . . . . 1 . . . disrupt_area 1 | . . . . . . . 1 . . . . . . . . . amplify_resonance 5 | . . . . . . . . . . 3 . 2 . . . . disable_weapons 1 | . . . . . . . 1 . . . . . . . . . go_dormant 2 | . . . . . . . 1 . . 1 . . . . . . overwrite_iff 2 | . . . . . . . . . . 2 . . . . . . formatsys_high 31 | . . . . . . . 8 2 . 15 2 1 3 . . . Relay Couplers Released 49 | . . . . . . . 20 . . 21 . . 8 . . . Machine Destruction 49 | . . . . . . . 20 . . 21 . . 8 . . . Attached 21 | . . . . . . . 4 1 . 10 3 . 3 . . . Merged Code Value 34 | . . . . . . . . . . . . . 34 . . . Fabnet Peak Effective % . | . . . . . . . . . . . . . . . . . Robots Rewired 1 | . . . . . . . . . . . . . 1 . . . Allies Hacked . | . . . . . . . . . . . . . . . . . Hacks Repelled . | . . . . . . . . . . . . . . . . . Allies | -11 -10 -10 -10 -9 -8 -7 -7 -7 -6 -6 -6 -5 -5 -5 -4 -3 -------- Run | Jun Mat Min Exi Min Mat Fac Gar Fac Fac Gar Fac Fac Gar Fac Fac Res Total Allies 37 | . . . . 3 . . 8 2 . 17 2 1 4 . . . Largest Group 9 | . . . . 3 3 . 4 5 4 8 9 6 6 . . . Highest-Rated Group 282 | . . . . 40 40 . 128 128 93 235 282 215 210 . . . Highest-Rated Ally 148 | . . . . 16 16 . 32 32 32 32 47 49 148 . . . Total Orders . | . . . . . . . . . . . . . . . . . Ally Attacks 304 | . . . . 3 32 . 25 39 . 67 40 15 83 . . . Total Damage 6199 | . . . . 42 304 . 779 824 . 1061 688 267 2234 . . . Kills 54 | . . . . 1 4 . 7 8 . 9 4 4 17 . . . Allies Corrupted 1 | . . . . . . . . . . 1 . . . . . . Allies Melted . | . . . . . . . . . . . . . . . . . Intel | -11 -10 -10 -10 -9 -8 -7 -7 -7 -6 -6 -6 -5 -5 -5 -4 -3 ------- Run | Jun Mat Min Exi Min Mat Fac Gar Fac Fac Gar Fac Fac Gar Fac Fac Res Robot Analysis Total . | . . . . . . . . . . . . . . . . . Derelict Logs Recovered 3 | . . 3 . . . . . . . . . . . . . . Drone Launches . | . . . . . . . . . . . . . . . . . Drone Recoveries . | . . . . . . . . . . . . . . . . . Exploration | -11 -10 -10 -10 -9 -8 -7 -7 -7 -6 -6 -6 -5 -5 -5 -4 -3 ------------- Run | Jun Mat Min Exi Min Mat Fac Gar Fac Fac Gar Fac Fac Gar Fac Fac Res Turns Passed 10092 | 62 581 598 380 564 809 93 1569 569 21 1081 200 628 474 232 1229 1002 Spaces Moved 6769 | 45 388 444 245 351 449 71 975 424 14 745 143 597 445 181 721 531 Core 15 | 2 . . . . . . . . . . . . . . . 13 Treads . | . . . . . . . . . . . . . . . . . Legs 5395 | 43 388 444 245 351 449 71 975 424 14 745 143 197 102 181 353 270 Wheels 471 | . . . . . . . . . . . . . . . 368 103 Hover 888 | . . . . . . . . . . . . 400 343 . . 145 Flight . | . . . . . . . . . . . . . . . . . Fastest Speed 44 | 50 120 120 120 120 120 120 120 125 125 125 122 55 55 112 105 44 Average Speed 118 | 116 120 120 153 140 120 122 125 125 125 125 123 82 69 113 131 120 Slowest Speed 750 | 120 120 120 190 190 120 127 126 125 125 126 125 140 150 114 360 750 Overloaded Moves . | . . . . . . . . . . . . . . . . . Propulsion Burnouts . | . . . . . . . . . . . . . . . . . Robots Hopped . | . . . . . . . . . . . . . . . . . Cave-ins Triggered . | . . . . . . . . . . . . . . . . . Exploration Rate (%) 35 | 4 57 75 62 70 52 2 86 16 1 68 5 14 47 6 28 13 Regions Visited 16 Branch Regions 3 Pre-discovered Areas 2 | . . 2 . . . . . . . . . . . . . . Known Exits Taken 9 | . 1 . . . 1 1 . 1 1 . 1 1 . 1 1 . Unknown Exits Taken 4 | 1 . 1 1 1 . . . . . . . . . . . . Scrap Searched 3 | . . 1 . 2 . . . . . . . . . . . . Spaces Dug . | . . . . . . . . . . . . . . . . . Terrain Destroyed 88 | . . . . 23 39 . . . . . . . 4 . 14 8 Melee . | . . . . . . . . . . . . . . . . . Projectile 5 | . . . . . . . . . . . . . . . 4 1 AOE 83 | . . . . 23 39 . . . . . . . 4 . 10 7 Terrain Rammed . | . . . . . . . . . . . . . . . . . Walls Destroyed . | . . . . . . . . . . . . . . . . . Machines Disabled . | . . . . . . . . . . . . . . . . . Actions | -11 -10 -10 -10 -9 -8 -7 -7 -7 -6 -6 -6 -5 -5 -5 -4 -3 --------- Run | Jun Mat Min Exi Min Mat Fac Gar Fac Fac Gar Fac Fac Gar Fac Fac Res Total 8228 | 52 449 484 250 388 636 76 1250 460 17 877 163 722 566 198 885 755 Wait 547 | . 19 18 . . 68 . 97 16 3 60 10 75 47 10 44 80 Move 6756 | 44 387 443 244 350 448 71 974 423 14 744 142 596 444 180 721 531 Hop . | . . . . . . . . . . . . . . . . . Pick Up 95 | 2 6 2 2 . 9 . 15 4 . 11 1 8 7 . 16 12 Fast Attach 97 | 5 2 2 1 4 12 . 4 1 . 4 1 7 9 2 12 31 Attach 69 | 1 . . . 1 5 1 7 . . 5 1 4 9 . 21 14 Detach 8 | . . . . . 1 . 1 . . . . 1 . 1 1 3 Swap 68 | . 4 1 . 11 14 3 13 3 . 5 4 . 3 1 2 4 Drop 93 | . 4 5 3 3 15 1 18 5 . 5 2 13 5 . 6 8 Fire 465 | . 27 13 . 19 62 . 100 8 . 41 2 18 37 4 62 72 Melee . | . . . . . . . . . . . . . . . . . Ram . | . . . . . . . . . . . . . . . . . Kick 2 | . . . . . 2 . . . . . . . . . . . Crush . | . . . . . . . . . . . . . . . . . Escape Stasis 26 | . . . . . . . 21 . . 1 . . 4 . . . Rewire 2 | . . . . . . . . . . 1 . . 1 . . . Trap . | . . . . . . . . . . . . . . . . . Miscellaneous . | . . . . . . . . . . . . . . . . . Route ------- -11/Junkyard -10/Materials (discovered 3 exits: *Mat x2 / *Min) -10/Mines (discovered 3 exits: *Mat x2 / *Exi) -10/Exiles -9/Mines -8/Materials -7/Factory -7/Garrison (discovered 3 exits: *Fac x3) -7/Factory -6/Factory -6/Garrison (discovered 3 exits: *Fac x3) -6/Factory -5/Factory -5/Garrison (discovered 2 exits: *Fac x2) -5/Factory -4/Factory (discovered 2 exits: *Res / *Upp) -3/Research History --------- Turn | Location | Event 5 | -11/Junkyard | Discovered new exit (range 15) 63 | -11/Junkyard | Entered Materials 283 | -10/Materials | Discovered new exit (range 3) 314 | -10/Materials | Build established: Mutant 493 | -10/Materials | Identified exit to Mines 585 | -10/Materials | Discovered new exit (range 3) 644 | -10/Materials | Entered Mines 661 | -10/Mines | Learned location of Zion (-6) 662 | -10/Mines | Discovered new exit (range 12) 755 | -10/Mines | Found a damaged Exp. Sensor Array with a note attached 758 | -10/Mines | Found Prototype Device 848 | -10/Mines | Build established: Scavenger-Mutant 1170 | -10/Mines | Deemed a non-threat by the Exiles lab entrance 1184 | -10/Mines | Learned Materials trap positions 1188 | -10/Mines | Identified exit to Materials 1201 | -10/Mines | Learned location of Storage (-9) 1236 | -10/Mines | Discovered new exit (range 5) 1242 | -10/Mines | Entered Exiles 1272 | -10/Exiles | Met 8R-AWN 1293 | -10/Exiles | Met EX-HEX 1304 | -10/Exiles | Build established: Mutant 1329 | -10/Exiles | Met EX-BIN 1353 | -10/Exiles | Aligned with FarCom system 1354 | -10/Exiles | Given EX-Vault access code 1382 | -10/Exiles | Opened EX-Vault 1395 | -10/Exiles | Found Latent Energy Streamer 1451 | -10/Exiles | Warned to stay clear of 0b10 Research branches 1504 | -10/Exiles | Met EX-DEC 1605 | -10/Exiles | Discovered new exit (range 10) 1622 | -10/Exiles | Left Exiles lab with Latent Energy Streamer 1622 | -10/Exiles | Entered Mines 1750 | -9/Mines | Core integrity fell below 50% 1809 | -9/Mines | Assisted by bots powering up and referring to "LRC-V3" 2056 | -9/Mines | Build established: Scavenger-Mutant 2121 | -9/Mines | Found a hidden stash of uninstalled traps 2169 | -9/Mines | Discovered new exit (range 9) 2186 | -9/Mines | Entered Materials 2186 | -8/Materials | Accompanied by 3 allies 2186 | -8/Materials | Evolved 4 slots: Propulsion x2, Utility x1, Weapon x1 2187 | -8/Materials | Loaded intel: 22 trap records 2631 | -8/Materials | Build established: Scavenger-Skirmisher 2982 | -8/Materials | Discovered new exit (range 9) 2993 | -8/Materials | Identified exit to Factory 2995 | -8/Materials | Entered Factory 2995 | -7/Factory | Evolved 2 slots: Utility x2 3088 | -7/Factory | Identified exit to Garrison 3088 | -7/Factory | Entered Garrison 3112 | -7/Garrison | Triggered checkpoint 3177 | -7/Garrison | Garrison Relay disabled 3506 | -7/Garrison | Triggered checkpoint 3617 | -7/Garrison | Discovered new exit (range 11) 3642 | -7/Garrison | Triggered checkpoint 3728 | -7/Garrison | Garrison Relay disabled 3760 | -7/Garrison | Build established: Skirmisher 3796 | -7/Garrison | Installed Relay Interface Framework 3803 | -7/Garrison | Garrison Relay disabled 3862 | -7/Garrison | Triggered checkpoint 4114 | -7/Garrison | Triggered checkpoint 4153 | -7/Garrison | Garrison Relay disabled 4187 | -7/Garrison | Discovered new exit (range 10) 4274 | -7/Garrison | Triggered checkpoint 4452 | -7/Garrison | Triggered checkpoint 4465 | -7/Garrison | Build established: Bothacker-Mutant 4474 | -7/Garrison | Garrison Relay disabled 4548 | -7/Garrison | Discovered new exit (range 9) 4556 | -7/Garrison | Identified exit to Factory 4657 | -7/Garrison | Entered Factory 4657 | -7/Factory | Accompanied by 3 allies 4667 | -7/Factory | Identified exit to DSF 5195 | -7/Factory | Discovered new exit (range 16) 5213 | -7/Factory | Identified exit to Factory 5226 | -7/Factory | Entered another Factory area 5226 | -6/Factory | Accompanied by 4 allies 5226 | -6/Factory | Evolved 2 slots: Utility x2 5244 | -6/Factory | Identified exit to Garrison 5247 | -6/Factory | Entered Garrison 5247 | -6/Garrison | Accompanied by 4 allies 5256 | -6/Garrison | Garrison Relay disabled 5310 | -6/Garrison | Triggered checkpoint 5332 | -6/Garrison | Garrison Relay disabled 5387 | -6/Garrison | Expanded RIF knowledge: Watcher Feeds 5516 | -6/Garrison | Triggered checkpoint 5521 | -6/Garrison | Triggered checkpoint 5528 | -6/Garrison | Triggered checkpoint 5669 | -6/Garrison | Discovered new exit (range 12) 5706 | -6/Garrison | Triggered checkpoint 5727 | -6/Garrison | Garrison Relay disabled 5769 | -6/Garrison | Identified exit to Factory 5862 | -6/Garrison | Triggered checkpoint 5944 | -6/Garrison | Triggered checkpoint 5973 | -6/Garrison | Garrison Relay disabled 6010 | -6/Garrison | Expanded RIF knowledge: Program Shield 6062 | -6/Garrison | Discovered exit to Factory (range 12) 6124 | -6/Garrison | Triggered checkpoint 6228 | -6/Garrison | Triggered checkpoint 6247 | -6/Garrison | Garrison Relay disabled 6297 | -6/Garrison | Discovered exit to Factory (range 9) 6328 | -6/Garrison | Entered Factory 6328 | -6/Factory | Accompanied by 8 allies 6467 | -6/Factory | Discovered new exit (range 14) 6489 | -6/Factory | Identified exit to Factory 6528 | -6/Factory | Entered another Factory area 6528 | -5/Factory | Accompanied by 5 allies 6528 | -5/Factory | Evolved 2 slots: Propulsion x1, Utility x1 7102 | -5/Factory | Identified exit to Garrison 7156 | -5/Factory | Entered Garrison 7156 | -5/Garrison | Accompanied by 5 allies 7164 | -5/Garrison | Expanded RIF knowledge: Code Merge 7190 | -5/Garrison | Triggered checkpoint 7209 | -5/Garrison | Garrison Relay disabled 7273 | -5/Garrison | Spotted B-75 Beast 7296 | -5/Garrison | Triggered checkpoint 7312 | -5/Garrison | Discovered new exit (range 10) 7313 | -5/Garrison | Spotted B-75 Beast 7315 | -5/Garrison | Spotted B-75 Beast 7317 | -5/Garrison | Rewired B-90 Cyclops 7324 | -5/Garrison | Lost 4 parts (1p1u2w) 7328 | -5/Garrison | Allies destroyed B-75 Beast 7367 | -5/Garrison | Garrison Relay disabled 7372 | -5/Garrison | Triggered checkpoint 7386 | -5/Garrison | Identified exit to Factory 7404 | -5/Garrison | Triggered checkpoint 7490 | -5/Garrison | Lost 8 parts (2p2n1u3w) 7603 | -5/Garrison | Discovered exit to Factory (range 5) 7630 | -5/Garrison | Entered Factory 7766 | -5/Factory | Build established: Scavenger-Skirmisher 7825 | -5/Factory | Discovered new exit (range 14) 7840 | -5/Factory | Identified exit to Factory 7862 | -5/Factory | Entered another Factory area 7862 | -4/Factory | Evolved 2 slots: Power x1, Utility x1 7921 | -4/Factory | Discovered new exit (range 15) 7933 | -4/Factory | Identified exit to Upper Caves 8184 | -4/Factory | Build established: Scavenger-Tank 8374 | -4/Factory | Lost 8 parts (3n3u2w) 8576 | -4/Factory | Lost 4 parts (1n1u2w) 8687 | -4/Factory | Lost 3 parts (2n1u) 8885 | -4/Factory | Garrison activated, responded to threat 8949 | -4/Factory | Build established: Scavenger-Skirmisher 8959 | -4/Factory | System corruption reached 10% 8989 | -4/Factory | Lost 3 parts (1u2w) 9025 | -4/Factory | Discovered new exit (range 10) 9056 | -4/Factory | System corruption reached 30% 9071 | -4/Factory | Core integrity fell below 50% 9085 | -4/Factory | Identified exit to Research 9091 | -4/Factory | Entered Research 9091 | -3/Research | Evolved 2 slots: Utility x1, Weapon x1 9122 | -3/Research | Lost 11 parts (3p3n1u4w) 9419 | -3/Research | Lost 6 parts (1p3n2w) 9532 | -3/Research | System corruption reached 10% 9575 | -3/Research | Lost 5 parts (1n3u1w) 9693 | -3/Research | Garrison activated, responded to threat 9712 | -3/Research | Lost 3 parts (2n1w) 9854 | -3/Research | Lost 3 parts (2u1w) 9904 | -3/Research | System corruption reached 30% 9981 | -3/Research | Core integrity fell below 50% 10044 | -3/Research | Lost 21 parts (3p8n4u6w) 10081 | -3/Research | Core integrity fell below 20% 10093 | -3/Research | Destroyed by H-77 Assassin with High-powered Shotgun Last Messages --------------- 10083_ Coil Gun destroyed. 10083_ Door malfunctions. 10083_ U-05 Engineer destroyed. 10083_ K-01 Serf collects debris. 10084_ Acquired Corrupted Hpw. Shotgun. 10084_ Integrated Corrupted Hpw. Shotgun (+10). 10084_ Penetrated by Slug. 10084_ Slug penetrates Wall. 10084_ Slug penetrates H-77 Assassin. 10085_ Slug penetrates Wall. 10086_ G-67 Veteran IFF system glitched. 10088_ Penetrated by Slug. 10088_ Slug penetrates Wall. 10088_ Penetrated by Slug. 10089_ U-05 Engineer lays Concrete. 10090_ K-01 Serf collects debris. 10091_ ALERT: Rogue bot located, Programmers report to Research Zone 5G. 10092_ Slug penetrates Wall. 10093_ SUM&O:=E:PTWCCD>ICMXSVAHLO1SFNG9BKYR4 10093_ Penetrated by Slug. Map ----- +----------------------------------------------------+ | ## #????????????????????????????????? | | ## #????????????????????????????????? | | ## ]!!#????????????????????????????????? | | ?# ]!!#????????????????????????????????? | | #+#### ]!!##########???????????????????????? | | ??????????????????????? | | = ??????????????????????? | | ?????????????????????? | | ??????????????????????? | | ############^^^^####h#???????????????????????????? | | ???????????# #???+#####???????????????????????? | | ???????????# #?? ???????????????????????? | | ???????????# #? h ?????????????????????????? | | ???????????# # """???????????????????????????? | | ???????????# # "?????????????????????????????? | | ??########## + "?????????????????????????????? | | ??# # ! # ?????????????????????????? | | ??# # % # #??????????????????????? | | ??# """ # #? #??????????????????????? | | ### """ # ###########??????????????????????? | | / """ # !=# = !#??????????????????????? | | ### """ # *g%# !* #??????????????????????? | | ??# """ +|!khhu !==% #??????????????????????? | | ??# # =%h#=% #??????????????????????? | | ??# # !=#% #??????????? ?????? | | #######+#### = # % @###### ?????? | | # [ + ?????? | | # ###### ?????? | | #####/#####??????????? ?????? | | T#??# #??????????????????????????? | | ############ #??# #??????????????????????????? | | ????????? ?# ##??# #??????????????????????????? | | ????????? # ##### #??????????????????????????? | | ?????????? # s #??????????????????????????? | | ?????"" + #######?????? #??????????????????? | | ????""" # s#???????????? #??????????????????? | | ?????"" ???# #???????????? #??????????????????? | | ???????????# #???????????? #??????????????????? | | ???????????# #????????#??? #??????????????????? | | ???????????# #?????? #### #??????????????????? | | ???????????# #???? # #??????????????????? | | ???????????# #?? # #??????????????????? | | ???????????# # !!! # +??????????????????? | | ???????????# + ! !!! # #??????????????????? | | ############ # !!! # #??????????????????? | | """T""" # #?? # #??????????????????? | | """ """ # ########## #??????????????????? | | # #??????????????????? | | " #?????#############? | | "%% #?????# """"" #? | +----------------------------------------------------+ Best States ------------- Heat Dissipation 130 Coolant Potential 100 Energy Generation 44 Energy Capacity 480 Matter Stores 300 Matter Capacity 300 Sight Range 16 Terrain Scan Density 10 Power Amplification 30 Armor Coverage 450 Weapon Cycling 15 Phase Shifting 10 Evasion (%) 56 Targeting Accuracy 8 Core Analysis 6 Offensive Hacking 14 Relay Coupler Types 4 Relay Coupler Value 100 Item Schematics ----------------- None Robot Schematics ------------------ None Fabricated ------------ Nothing Alien Tech Used ----------------- None Achievements -------------- Error 47 Z1$+NX3F=JRE3_ZNQR Challenges ------------ None Game ------ Seed ChipAnalysisProcessor Manual? 0 Play Time 01:37:17 Cumulative 30.5 hours Start 2023.03.31 @ 22:00:55 End 2023.03.31 @ 23:37:56 Sessions 1 Manual Loads 0 Difficulty Rogue Special Mode None Game No. 48 Rogue 32 Adventurer 16 Explorer 0 Win Type - Total 1 Types 1/0/0/0/0/0/0/0/0 Lore% 20 Gallery% 38 Achievement% 35 Wizard Run 0 Options --------- ASCII 0 Keyboard 0 Movement Mouse Keybinds 0 Fullscreen 1 Font 18/SmallcapsGlow Map View 76x50 Tactical HUD 1 Map Filters NONE Filters NONE Steam 1 RUN: b1ee4a97-c26c-4932-bd78-6d033f13e56c